fUST/lending_fUST_20260519
["ID","MTS","AMOUNT","RATE_DAILY","PERIOD"]
[422577224,1779120031000,200.0,0.0001703,120]
[422577225,1779120054000,-5000.0,7.108e-05,2]
[422577226,1779120071000,-356.54714898,7.209e-05,2]
[422577227,1779120088000,-1382.7489362,7.237e-05,2]
[422577228,1779120105000,-206.3129,7.326e-05,2]
[422577229,1779120122000,-2739.38872703,7.337e-05,2]
[422577230,1779120140000,-14547.90759519,7.4e-05,2]
[422577232,1779120157000,-2739.38872703,7.4e-05,2]
[422577233,1779120173000,-14547.90759519,7.4e-05,2]
[422577234,1779120211000,200.0,0.00014887,120]
[422577237,1779120331000,200.0,0.00015137,120]
[422577256,1779120390000,200.0,0.00014957,120]
[422577261,1779120450000,200.0,0.00015786,120]
[422577262,1779120510000,200.0,0.00016389,120]
[422577264,1779120570000,200.0,0.00017658,120]
[422577311,1779120638000,-262.108369,7.108e-05,2]
[422577315,1779120638000,-3510.69572682,7.18e-05,2]
[422577317,1779120638000,-300.0,7.398e-05,2]
[422577319,1779120638000,-362.0,7.398e-05,2]
[422577321,1779120638000,-500.0,7.399e-05,2]
[422577313,1779120638000,-355.88710517,7.144e-05,2]
[422577327,1779120638000,-147.43954127,7.399e-05,2]
[422577325,1779120638000,-313.82158633,7.399e-05,2]
[422577350,1779120638000,-16503.61375275,7.4e-05,2]
[422577338,1779120638000,-352.56045873,7.399e-05,2]
[422577344,1779120638000,-500.0,7.399e-05,2]
[422577341,1779120638000,-500.0,7.399e-05,2]
[422577342,1779120638000,-500.0,7.399e-05,2]
[422577347,1779120638000,-500.0,7.399e-05,2]
[422577323,1779120638000,-500.0,7.399e-05,2]
[422577466,1779120644000,-500.0,8.219e-05,2]
[422577461,1779120644000,-500.0,8.219e-05,2]
[422577459,1779120644000,-525.16,8.219e-05,2]
[422577457,1779120644000,-500.0,8.219e-05,2]
[422577468,1779120644000,-3232.0999,8.219e-05,2]
[422577449,1779120644000,-500.0,8.219e-05,2]
[422577451,1779120644000,-500.0,8.219e-05,2]
[422577455,1779120644000,-500.0,8.219e-05,2]
[422577453,1779120644000,-500.0,8.219e-05,2]
[422577452,1779120644000,-587.64,8.219e-05,2]
[422577458,1779120644000,-2611.11,8.219e-05,2]
[422577463,1779120644000,-500.0,8.219e-05,2]
[422577470,1779120644000,-952.03,8.219e-05,2]
[422577464,1779120644000,-500.0,8.219e-05,2]
[422577467,1779120644000,-601.23,8.219e-05,2]
[422577462,1779120644000,-778.99,8.219e-05,2]
[422577469,1779120644000,-1589.25,8.219e-05,2]
[422577471,1779120644000,-2756.17,8.219e-05,2]
[422577472,1779120644000,-500.0,8.219e-05,2]
[422577474,1779120644000,-500.0,8.219e-05,2]
[422577473,1779120644000,-1366.26,8.219e-05,2]
[422577475,1779120644000,-500.0,8.219e-05,2]
[422577477,1779120644000,-730.11,8.219e-05,2]
[422577482,1779120644000,-500.0,8.219e-05,2]
[422577450,1779120644000,-1149.2,8.219e-05,2]
[422577465,1779120644000,-777.4,8.219e-05,2]
[422577454,1779120644000,-579.21,8.219e-05,2]
[422577435,1779120644000,-500.0,8.219e-05,2]
[422577445,1779120644000,-500.0,8.219e-05,2]
[422577423,1779120644000,-368556.34635569,7.4e-05,2]
[422577422,1779120644000,-321.51781392,7.326e-05,2]
[422577424,1779120644000,-2957.63320503,7.437e-05,2]
[422577426,1779120644000,-3172.88236314,7.537e-05,2]
[422577428,1779120644000,-3388.13152135,7.637e-05,2]
[422577432,1779120644000,-4035.46660474,7.86e-05,2]
[422577430,1779120644000,-503.34174726,7.828e-05,2]
[422577431,1779120644000,-3820.12945937,7.837e-05,2]
[422577429,1779120644000,-3603.38067957,7.737e-05,2]
[422577427,1779120644000,-503.34174726,7.633e-05,2]
[422577425,1779120644000,-503.34174728,7.437e-05,2]
[422577434,1779120644000,-15625.59520676,8.1e-05,2]
[422577447,1779120644000,-500.0,8.219e-05,2]
[422577433,1779120644000,-503.34174726,8.024e-05,2]
[422577478,1779120644000,-1727.58,8.219e-05,2]
[422577436,1779120644000,-500.0,8.219e-05,2]
[422577440,1779120644000,-500.0,8.219e-05,2]
[422577438,1779120644000,-500.0,8.219e-05,2]
[422577441,1779120644000,-500.0,8.219e-05,2]
[422577437,1779120644000,-615.54,8.219e-05,2]
[422577439,1779120644000,-935.59,8.219e-05,2]
[422577442,1779120644000,-500.0,8.219e-05,2]
[422577443,1779120644000,-569.09,8.219e-05,2]
[422577446,1779120644000,-1108.37,8.219e-05,2]
[422577456,1779120644000,-736.46,8.219e-05,2]
[422577448,1779120644000,-500.0,8.219e-05,2]
[422577444,1779120644000,-526.68,8.219e-05,2]
[422577480,1779120644000,-500.0,8.219e-05,2]
[422577460,1779120644000,-500.0,8.219e-05,2]
[422577481,1779120644000,-500.0,8.219e-05,2]
[422577521,1779120644000,-2461.25,8.219e-05,2]
[422577516,1779120644000,-1598.37,8.219e-05,2]
[422577522,1779120644000,-838.74,8.219e-05,2]
[422577519,1779120644000,-1067.76,8.219e-05,2]
[422577512,1779120644000,-500.0,8.219e-05,2]
[422577513,1779120644000,-500.0,8.219e-05,2]
[422577514,1779120644000,-686.22,8.219e-05,2]
[422577517,1779120644000,-500.0,8.219e-05,2]
[422577515,1779120644000,-615.9,8.219e-05,2]
[422577520,1779120644000,-500.0,8.219e-05,2]
[422577518,1779120644000,-513.8,8.219e-05,2]
[422577524,1779120644000,-500.0,8.219e-05,2]
[422577510,1779120644000,-7907.94,8.219e-05,2]
[422577534,1779120644000,-5566.8,8.219e-05,2]
[422577526,1779120644000,-500.0,8.219e-05,2]
[422577525,1779120644000,-1582.1,8.219e-05,2]
[422577531,1779120644000,-2748.69,8.219e-05,2]
[422577532,1779120644000,-570.39,8.219e-05,2]
[422577533,1779120644000,-854.92,8.219e-05,2]
[422577530,1779120644000,-500.0,8.219e-05,2]
[422577528,1779120644000,-3059.86,8.219e-05,2]
[422577529,1779120644000,-3368.1,8.219e-05,2]
[422577527,1779120644000,-3189.32,8.219e-05,2]
[422577536,1779120644000,-500.0,8.219e-05,2]
[422577537,1779120644000,-2337.14,8.219e-05,2]
[422577479,1779120644000,-2970.34,8.219e-05,2]
[422577535,1779120644000,-726.53,8.219e-05,2]
[422577511,1779120644000,-500.0,8.219e-05,2]
[422577523,1779120644000,-500.0,8.219e-05,2]
[422577504,1779120644000,-500.0,8.219e-05,2]
[422577476,1779120644000,-500.0,8.219e-05,2]
[422577506,1779120644000,-500.0,8.219e-05,2]
[422577483,1779120644000,-525.09,8.219e-05,2]
[422577486,1779120644000,-500.0,8.219e-05,2]
[422577485,1779120644000,-500.0,8.219e-05,2]
[422577487,1779120644000,-500.0,8.219e-05,2]
[422577488,1779120644000,-287.20921651,8.219e-05,2]
[422577493,1779120644000,-500.0,8.219e-05,2]
[422577484,1779120644000,-500.0,8.219e-05,2]
[422577495,1779120644000,-500.0,8.219e-05,2]
[422577494,1779120644000,-500.0,8.219e-05,2]
[422577489,1779120644000,-1070.75,8.219e-05,2]
[422577490,1779120644000,-500.0,8.219e-05,2]
[422577492,1779120644000,-627.87,8.219e-05,2]
[422577491,1779120644000,-500.0,8.219e-05,2]
[422577501,1779120644000,-714.24,8.219e-05,2]
[422577500,1779120644000,-500.0,8.219e-05,2]
[422577497,1779120644000,-500.0,8.219e-05,2]
[422577505,1779120644000,-500.0,8.219e-05,2]
[422577503,1779120644000,-1361.93,8.219e-05,2]
[422577502,1779120644000,-500.0,8.219e-05,2]
[422577507,1779120644000,-500.0,8.219e-05,2]
[422577508,1779120644000,-500.0,8.219e-05,2]
[422577499,1779120644000,-500.0,8.219e-05,2]
[422577496,1779120644000,-500.0,8.219e-05,2]
[422577498,1779120644000,-1713.35,8.219e-05,2]
[422577509,1779120644000,-500.0,8.219e-05,2]
[422577581,1779120645000,-9806.69,8.219e-05,2]
[422577587,1779120645000,-2108.05,8.219e-05,2]
[422577583,1779120645000,-500.0,8.219e-05,2]
[422577576,1779120645000,-3257.06,8.219e-05,2]
[422577580,1779120645000,-500.0,8.219e-05,2]
[422577569,1779120645000,-677.77,8.219e-05,2]
[422577570,1779120645000,-7019.84,8.219e-05,2]
[422577567,1779120645000,-187.586279,8.219e-05,2]
[422577566,1779120645000,-1241.58,8.219e-05,2]
[422577582,1779120645000,-500.0,8.219e-05,2]
[422577564,1779120645000,-5999.53,8.219e-05,2]
[422577575,1779120645000,-500.0,8.219e-05,2]
[422577585,1779120645000,-500.0,8.219e-05,2]
[422577594,1779120645000,-678.67,8.219e-05,2]
[422577578,1779120645000,-695.02,8.219e-05,2]
[422577577,1779120645000,-619.89588498,8.219e-05,2]
[422577586,1779120645000,-500.0,8.219e-05,2]
[422577579,1779120645000,-500.0,8.219e-05,2]
[422577589,1779120645000,-2193.35,8.219e-05,2]
[422577599,1779120645000,-1237.02,8.219e-05,2]
[422577588,1779120645000,-2550.59,8.219e-05,2]
[422577601,1779120645000,-1404.37,8.219e-05,2]
[422577590,1779120645000,-4356.94,8.219e-05,2]
[422577591,1779120645000,-4254.18,8.219e-05,2]
[422577600,1779120645000,-503.34174726,8.219e-05,2]
[422577565,1779120645000,-2179.04,8.219e-05,2]
[422577598,1779120645000,-870.06,8.219e-05,2]
[422577584,1779120645000,-500.0,8.219e-05,2]
[422577568,1779120645000,-500.0,8.219e-05,2]
[422577544,1779120645000,-500.0,8.219e-05,2]
[422577562,1779120645000,-1579.4,8.219e-05,2]
[422577595,1779120645000,-1036.32,8.219e-05,2]
[422577539,1779120645000,-500.74,8.219e-05,2]
[422577547,1779120645000,-560.54,8.219e-05,2]
[422577546,1779120645000,-500.0,8.219e-05,2]
[422577538,1779120645000,-2528.53,8.219e-05,2]
[422577548,1779120645000,-500.0,8.219e-05,2]
[422577545,1779120645000,-203.47788542,8.219e-05,2]
[422577540,1779120645000,-500.0,8.219e-05,2]
[422577542,1779120645000,-1423.48,8.219e-05,2]
[422577541,1779120645000,-577.77,8.219e-05,2]
[422577543,1779120645000,-500.0,8.219e-05,2]
[422577549,1779120645000,-964.15,8.219e-05,2]
[422577551,1779120645000,-500.0,8.219e-05,2]
[422577574,1779120645000,-1563.0,8.219e-05,2]
[422577560,1779120645000,-500.0,8.219e-05,2]
[422577552,1779120645000,-2877.4,8.219e-05,2]
[422577554,1779120645000,-644.45,8.219e-05,2]
[422577550,1779120645000,-541.72746074,8.219e-05,2]
[422577561,1779120645000,-500.0,8.219e-05,2]
[422577559,1779120645000,-2760.31,8.219e-05,2]
[422577556,1779120645000,-500.0,8.219e-05,2]
[422577558,1779120645000,-500.0,8.219e-05,2]
[422577555,1779120645000,-2873.69,8.219e-05,2]
[422577557,1779120645000,-500.0,8.219e-05,2]
[422577563,1779120645000,-9787.18,8.219e-05,2]
[422577571,1779120645000,-788.08,8.219e-05,2]
[422577572,1779120645000,-48066.63,8.219e-05,2]
[422577573,1779120645000,-500.0,8.219e-05,2]
[422577553,1779120645000,-500.0,8.219e-05,2]
[422577593,1779120645000,-1031.38,8.219e-05,2]
[422577626,1779120645000,-500.0,8.219e-05,2]
[422577592,1779120645000,-500.0,8.219e-05,2]
[422577638,1779120645000,-935.59,8.493e-05,2]
[422577634,1779120645000,-500.0,8.493e-05,2]
[422577635,1779120645000,-500.0,8.493e-05,2]
[422577640,1779120645000,-500.0,8.493e-05,2]
[422577639,1779120645000,-500.0,8.493e-05,2]
[422577636,1779120645000,-615.54,8.493e-05,2]
[422577633,1779120645000,-986.275,8.493e-05,2]
[422577637,1779120645000,-500.0,8.493e-05,2]
[422577643,1779120645000,-526.68,8.493e-05,2]
[422577651,1779120645000,-587.64,8.493e-05,2]
[422577645,1779120645000,-1108.37,8.493e-05,2]
[422577642,1779120645000,-569.09,8.493e-05,2]
[422577652,1779120645000,-500.0,8.493e-05,2]
[422577653,1779120645000,-579.21,8.493e-05,2]
[422577646,1779120645000,-500.0,8.493e-05,2]
[422577644,1779120645000,-500.0,8.493e-05,2]
[422577649,1779120645000,-1149.2,8.493e-05,2]
[422577647,1779120645000,-500.0,8.493e-05,2]
[422577648,1779120645000,-500.0,8.493e-05,2]
[422577650,1779120645000,-500.0,8.493e-05,2]
[422577654,1779120645000,-464.42913141,8.493e-05,2]
[422577656,1779120645000,-500.0,8.493e-05,2]
[422577655,1779120645000,-736.46,8.493e-05,2]
[422577658,1779120645000,-525.16,8.493e-05,2]
[422577660,1779120645000,-500.0,8.493e-05,2]
[422577659,1779120645000,-500.0,8.493e-05,2]
[422577657,1779120645000,-2611.11,8.493e-05,2]
[422577632,1779120645000,-2395.2436,8.493e-05,2]
[422577631,1779120645000,-986.2774,8.493e-05,2]
[422577641,1779120645000,-500.0,8.493e-05,2]
[422577630,1779120645000,-4096.02851786,8.269e-05,2]
[422577596,1779120645000,-2650.52,8.219e-05,2]
[422577602,1779120645000,-2086.07,8.219e-05,2]
[422577607,1779120645000,-7351.93,8.219e-05,2]
[422577606,1779120645000,-3337.17,8.219e-05,2]
[422577605,1779120645000,-500.0,8.219e-05,2]
[422577610,1779120645000,-500.0,8.219e-05,2]
[422577604,1779120645000,-2945.93,8.219e-05,2]
[422577629,1779120645000,-500.0,8.219e-05,2]
[422577612,1779120645000,-751.48,8.219e-05,2]
[422577603,1779120645000,-3039.42,8.219e-05,2]
[422577613,1779120645000,-500.0,8.219e-05,2]
[422577611,1779120645000,-500.0,8.219e-05,2]
[422577609,1779120645000,-2874.48,8.219e-05,2]
[422577614,1779120645000,-500.0,8.219e-05,2]
[422577608,1779120645000,-500.0,8.219e-05,2]
[422577623,1779120645000,-500.0,8.219e-05,2]
[422577616,1779120645000,-4085.8,8.219e-05,2]
[422577628,1779120645000,-500.0,8.219e-05,2]
[422577627,1779120645000,-415.59314141,8.219e-05,2]
[422577625,1779120645000,-1818.2,8.219e-05,2]
[422577661,1779120645000,-778.99,8.493e-05,2]
[422577620,1779120645000,-500.0,8.219e-05,2]
[422577622,1779120645000,-500.0,8.219e-05,2]
[422577597,1779120645000,-7499.54,8.219e-05,2]
[422577621,1779120645000,-2589.72,8.219e-05,2]
[422577619,1779120645000,-500.0,8.219e-05,2]
[422577615,1779120645000,-500.0,8.219e-05,2]
[422577617,1779120645000,-500.0,8.219e-05,2]
[422577618,1779120645000,-617.81,8.219e-05,2]
[422577624,1779120645000,-356.57171098,8.219e-05,2]
[422577665,1779120646000,-288.09,8.493e-05,2]
[422577667,1779120646000,-952.03,8.493e-05,2]
[422577663,1779120646000,-500.0,8.493e-05,2]
[422577664,1779120646000,-777.4,8.493e-05,2]
[422577668,1779120646000,-2756.17,8.493e-05,2]
[422577666,1779120646000,-1589.25,8.493e-05,2]
[422577669,1779120646000,-147.9843947,8.493e-05,2]
[422577662,1779120646000,-500.0,8.493e-05,2]
[422577689,1779120647000,-664.130655,8.493e-05,2]
[422577688,1779120647000,-352.0156053,8.493e-05,2]
[422577691,1779120690000,200.0,0.00017516,120]
[422577692,1779120781000,2000.0,0.000178,120]
[422577693,1779120793000,2000.0,0.000178,120]
[422577694,1779120805000,2000.0,0.000178,120]
[422577695,1779120810000,200.0,0.00017613,120]
[422577696,1779120814000,2000.0,0.000178,120]
[422577697,1779120848000,2000.0,0.000178,120]
[422577698,1779120895000,7486.24,0.000178,120]
[422577742,1779121833000,-1313.15355256,7.845e-05,2]
[422577738,1779121833000,-406.05945087,7.745e-05,2]
[422577740,1779121833000,-1829.69720108,7.745e-05,2]
[422577736,1779121833000,-1138.85224006,7.645e-05,2]
[422577734,1779121833000,-1209.59966556,7.212e-05,2]
[422577735,1779121833000,-355.11084425,7.396e-05,2]
[422577733,1779121833000,-392.20368658,7.14e-05,2]
[422577732,1779121833000,-5000.0,7.069e-05,2]
[422577757,1779121838000,-870.46023069,8.019e-05,2]
[422577758,1779121838000,-2409.0,8.019e-05,2]
[422577756,1779121838000,-1143.65640217,7.845e-05,2]
[422577767,1779121841000,-8308.49737407,8.019e-05,2]
[422577810,1779121843000,-550.91777761,8.019e-05,2]
[422577844,1779121844000,-500.0,8.219e-05,2]
[422577850,1779121844000,-500.0,8.219e-05,2]
[422577846,1779121844000,-500.0,8.219e-05,2]
[422577853,1779121844000,-500.0,8.219e-05,2]
[422577854,1779121844000,-151.0,8.219e-05,2]
[422577845,1779121844000,-358.97425068,8.219e-05,2]
[422577847,1779121844000,-500.0,8.219e-05,2]
[422577851,1779121844000,-500.0,8.219e-05,2]
[422577849,1779121844000,-373.19330361,8.219e-05,2]
[422577848,1779121844000,-500.0,8.219e-05,2]
[422577852,1779121844000,-1305.18,8.219e-05,2]
[422577843,1779121844000,-500.0,8.219e-05,2]
[422577855,1779121844000,-505.35,8.219e-05,2]
[422577858,1779121844000,-500.0,8.219e-05,2]
[422577865,1779121844000,-500.0,8.219e-05,2]
[422577866,1779121844000,-500.0,8.219e-05,2]
[422577861,1779121844000,-590.24,8.219e-05,2]
[422577862,1779121844000,-1118.07,8.219e-05,2]
[422577864,1779121844000,-2754.71,8.219e-05,2]
[422577836,1779121844000,-500.0,8.219e-05,2]
[422577856,1779121844000,-538.67,8.219e-05,2]
[422577860,1779121844000,-500.0,8.219e-05,2]
[422577863,1779121844000,-684.48,8.219e-05,2]
[422577859,1779121844000,-500.0,8.219e-05,2]
[422577878,1779121844000,-500.0,8.219e-05,2]
[422577879,1779121844000,-2393.52,8.219e-05,2]
[422577868,1779121844000,-803.79,8.219e-05,2]
[422577857,1779121844000,-1018.38,8.219e-05,2]
[422577837,1779121844000,-1281.66,8.219e-05,2]
[422577842,1779121844000,-500.0,8.219e-05,2]
[422577834,1779121844000,-500.0,8.219e-05,2]
[422577867,1779121844000,-271.02214466,8.219e-05,2]
[422577811,1779121844000,-2804.51167506,8.045e-05,2]
[422577812,1779121844000,-2978.36253528,8.145e-05,2]
[422577816,1779121844000,-500.0,8.218e-05,2]
[422577813,1779121844000,-500.0,8.218e-05,2]
[422577814,1779121844000,-354.92498723,8.218e-05,2]
[422577815,1779121844000,-500.0,8.218e-05,2]
[422577817,1779121844000,-500.0,8.218e-05,2]
[422577819,1779121844000,-500.0,8.218e-05,2]
[422577818,1779121844000,-500.0,8.218e-05,2]
[422577820,1779121844000,-500.0,8.218e-05,2]
[422577821,1779121844000,-500.0,8.219e-05,2]
[422577829,1779121844000,-500.0,8.219e-05,2]
[422577838,1779121844000,-500.0,8.219e-05,2]
[422577830,1779121844000,-577.43,8.219e-05,2]
[422577823,1779121844000,-500.0,8.219e-05,2]
[422577824,1779121844000,-500.0,8.219e-05,2]
[422577827,1779121844000,-230.67479771,8.219e-05,2]
[422577825,1779121844000,-257.04331975,8.219e-05,2]
[422577828,1779121844000,-877.49,8.219e-05,2]
[422577826,1779121844000,-500.0,8.219e-05,2]
[422577832,1779121844000,-712.62,8.219e-05,2]
[422577840,1779121844000,-500.0,8.219e-05,2]
[422577841,1779121844000,-500.0,8.219e-05,2]
[422577831,1779121844000,-500.0,8.219e-05,2]
[422577833,1779121844000,-500.0,8.219e-05,2]
[422577835,1779121844000,-576.18,8.219e-05,2]
[422577839,1779121844000,-500.0,8.219e-05,2]
[422577822,1779121844000,-500.0,8.219e-05,2]
[422577877,1779121844000,-714.08,8.219e-05,2]
[422577930,1779121844000,-500.0,8.219e-05,2]
[422577876,1779121844000,-500.0,8.219e-05,2]
[422577906,1779121844000,-1497.88,8.219e-05,2]
[422577907,1779121844000,-500.0,8.219e-05,2]
[422577909,1779121844000,-503.21,8.219e-05,2]
[422577917,1779121844000,-500.0,8.219e-05,2]
[422577908,1779121844000,-2526.49,8.219e-05,2]
[422577911,1779121844000,-500.0,8.219e-05,2]
[422577910,1779121844000,-500.0,8.219e-05,2]
[422577914,1779121844000,-500.0,8.219e-05,2]
[422577912,1779121844000,-500.0,8.219e-05,2]
[422577915,1779121844000,-500.0,8.219e-05,2]
[422577913,1779121844000,-500.0,8.219e-05,2]
[422577916,1779121844000,-650.4,8.219e-05,2]
[422577919,1779121844000,-500.0,8.219e-05,2]
[422577918,1779121844000,-500.0,8.219e-05,2]
[422577920,1779121844000,-993.14,8.219e-05,2]
[422577921,1779121844000,-500.0,8.219e-05,2]
[422577922,1779121844000,-720.17,8.219e-05,2]
[422577923,1779121844000,-500.0,8.219e-05,2]
[422577927,1779121844000,-500.0,8.219e-05,2]
[422577925,1779121844000,-601.71,8.219e-05,2]
[422577926,1779121844000,-500.0,8.219e-05,2]
[422577924,1779121844000,-500.0,8.219e-05,2]
[422577928,1779121844000,-553.68188963,8.219e-05,2]
[422577932,1779121844000,-564.24,8.219e-05,2]
[422577929,1779121844000,-500.0,8.219e-05,2]
[422577931,1779121844000,-500.0,8.219e-05,2]
[422577933,1779121844000,-500.0,8.219e-05,2]
[422577902,1779121844000,-1513.59,8.219e-05,2]
[422577901,1779121844000,-699.69,8.219e-05,2]
[422577875,1779121844000,-500.0,8.219e-05,2]
[422577900,1779121844000,-500.0,8.219e-05,2]
[422577899,1779121844000,-500.0,8.219e-05,2]
[422577872,1779121844000,-500.0,8.219e-05,2]
[422577869,1779121844000,-1558.53,8.219e-05,2]
[422577874,1779121844000,-500.0,8.219e-05,2]
[422577871,1779121844000,-592.07,8.219e-05,2]
[422577870,1779121844000,-500.0,8.219e-05,2]
[422577873,1779121844000,-530.95,8.219e-05,2]
[422577881,1779121844000,-500.0,8.219e-05,2]
[422577880,1779121844000,-500.0,8.219e-05,2]
[422577892,1779121844000,-500.0,8.219e-05,2]
[422577882,1779121844000,-500.0,8.219e-05,2]
[422577883,1779121844000,-500.0,8.219e-05,2]
[422577890,1779121844000,-1397.25,8.219e-05,2]
[422577886,1779121844000,-923.54,8.219e-05,2]
[422577891,1779121844000,-546.62,8.219e-05,2]
[422577885,1779121844000,-500.0,8.219e-05,2]
[422577888,1779121844000,-500.0,8.219e-05,2]
[422577897,1779121844000,-755.26,8.219e-05,2]
[422577904,1779121844000,-755.24,8.219e-05,2]
[422577894,1779121844000,-1364.16,8.219e-05,2]
[422577896,1779121844000,-500.0,8.219e-05,2]
[422577905,1779121844000,-1655.6,8.219e-05,2]
[422577895,1779121844000,-500.0,8.219e-05,2]
[422577903,1779121844000,-872.69,8.219e-05,2]
[422577898,1779121844000,-500.0,8.219e-05,2]
[422577884,1779121844000,-500.0,8.219e-05,2]
[422577889,1779121844000,-1456.81,8.219e-05,2]
[422577887,1779121844000,-500.0,8.219e-05,2]
[422577893,1779121844000,-451.59087451,8.219e-05,2]
[422577980,1779121845000,-1016.0,8.219e-05,2]
[422577977,1779121845000,-9379.39,8.219e-05,2]
[422577972,1779121845000,-521.67,8.219e-05,2]
[422577978,1779121845000,-500.0,8.219e-05,2]
[422577970,1779121845000,-2423.17,8.219e-05,2]
[422577962,1779121845000,-553.7,8.219e-05,2]
[422577968,1779121845000,-5334.85,8.219e-05,2]
[422577971,1779121845000,-500.0,8.219e-05,2]
[422577979,1779121845000,-6727.35,8.219e-05,2]
[422577969,1779121845000,-2757.51,8.219e-05,2]
[422577974,1779121845000,-2645.3,8.219e-05,2]
[422577981,1779121845000,-500.0,8.219e-05,2]
[422577975,1779121845000,-617.6,8.219e-05,2]
[422577987,1779121845000,-500.0,8.219e-05,2]
[422577976,1779121845000,-500.0,8.219e-05,2]
[422577994,1779121845000,-500.0,8.219e-05,2]
[422577993,1779121845000,-2088.24,8.219e-05,2]
[422577983,1779121845000,-2753.95,8.219e-05,2]
[422577982,1779121845000,-1189.85,8.219e-05,2]
[422577984,1779121845000,-1011.5,8.219e-05,2]
[422577985,1779121845000,-500.0,8.219e-05,2]
[422577986,1779121845000,-500.0,8.219e-05,2]
[422577988,1779121845000,-46063.85,8.219e-05,2]
[422577991,1779121845000,-666.06,8.219e-05,2]
[422577990,1779121845000,-500.0,8.219e-05,2]
[422577992,1779121845000,-5749.55,8.219e-05,2]
[422577959,1779121845000,-500.0,8.219e-05,2]
[422577973,1779121845000,-2239.75,8.219e-05,2]
[422577956,1779121845000,-500.0,8.219e-05,2]
[422577952,1779121845000,-3227.77,8.219e-05,2]
[422577960,1779121845000,-500.0,8.219e-05,2]
[422577989,1779121845000,-500.0,8.219e-05,2]
[422577941,1779121845000,-500.0,8.219e-05,2]
[422577939,1779121845000,-3198.12,8.219e-05,2]
[422577936,1779121845000,-500.0,8.219e-05,2]
[422577937,1779121845000,-1641.96,8.219e-05,2]
[422577935,1779121845000,-1174.26,8.219e-05,2]
[422577938,1779121845000,-500.0,8.219e-05,2]
[422577934,1779121845000,-1116.9066,8.219e-05,2]
[422577943,1779121845000,-1742.44,8.219e-05,2]
[422577942,1779121845000,-3915.56,8.219e-05,2]
[422577953,1779121845000,-657.62,8.219e-05,2]
[422577944,1779121845000,-1023.27,8.219e-05,2]
[422577955,1779121845000,-2634.16,8.219e-05,2]
[422577961,1779121845000,-2358.7,8.219e-05,2]
[422577954,1779121845000,-857.63,8.219e-05,2]
[422577946,1779121845000,-7578.45,8.219e-05,2]
[422577950,1779121845000,-500.0,8.219e-05,2]
[422577948,1779121845000,-500.0,8.219e-05,2]
[422577947,1779121845000,-1516.18,8.219e-05,2]
[422577949,1779121845000,-1531.77,8.219e-05,2]
[422577951,1779121845000,-500.0,8.219e-05,2]
[422577957,1779121845000,-819.29,8.219e-05,2]
[422577964,1779121845000,-500.0,8.219e-05,2]
[422577965,1779121845000,-2932.37,8.219e-05,2]
[422577958,1779121845000,-3056.43,8.219e-05,2]
[422577967,1779121845000,-500.0,8.219e-05,2]
[422577963,1779121845000,-500.0,8.219e-05,2]
[422577966,1779121845000,-923.98,8.219e-05,2]
[422577945,1779121845000,-500.0,8.219e-05,2]
[422577940,1779121845000,-500.0,8.219e-05,2]
[422577995,1779121845000,-649.53,8.219e-05,2]
[422578004,1779121845000,-2101.96,8.219e-05,2]
[422578027,1779121845000,-500.0,8.219e-05,2]
[422578029,1779121845000,-1653.93364018,8.323e-05,2]
[422578030,1779121845000,-3327.36253186,8.345e-05,2]
[422578040,1779121845000,-500.0,8.493e-05,2]
[422578035,1779121845000,-500.0,8.493e-05,2]
[422578031,1779121845000,-196.9365,8.493e-05,2]
[422578032,1779121845000,-320.02447907,8.493e-05,2]
[422578036,1779121845000,-500.0,8.493e-05,2]
[422578037,1779121845000,-877.49,8.493e-05,2]
[422578033,1779121845000,-500.0,8.493e-05,2]
[422578034,1779121845000,-500.0,8.493e-05,2]
[422578042,1779121845000,-500.0,8.493e-05,2]
[422578052,1779121845000,-500.0,8.493e-05,2]